Workbook

Sheet MSU
B1: Jussi Vesanko | E1: 7.2.1970
B2: SUPERPESIS | E2: Runkosarja | I2: Kärkilyönnit (KL), pesänvälit | P2: Runkosarja TOP-30 | U2: Ylempi loppusarja | AB2: Ylempi loppusarja TOP-10 | AG2: Play off, voitot, voittoprosentti | AL2: Arvo-ottelut | AO2: Mitalit
B3: Vuosi | C3: Sija | D3: Seura | E3: OTT | F3: KUN | G3: LÖI | H3: TOI | I3: KL | J3: 0 > 1 | K3: 1 > 2 | L3: 2 > 3 | M3: 3 > k | N3: KL-% | P3: LÖI | Q3: TOI | R3: L+T | S3: KL | U3: OTT | V3: KUN | W3: LÖI | X3: TOI | Y3: KL | Z3: KL-% | AB3: LÖI | AC3: TOI | AD3: L+T | AE3: KL | AG3: Puolivälierät | AH3: Välierät | AI3: Pronssi | AJ3: Finaalit | AL3: IL | AM3: LL | AN3: hSM | AO3: K | AP3: H | AQ3: P
B4: 1988 | C4: 12. | D4: KaMa 2 | F4: suomensarja
B5: 1989 | C5: 3. | D5: KaMa 2 | F5: maakuntasarja | AA5: 0
B6: 1989 | C6: 5. | D6: KaMa | E6: 0 | F6: 0 | G6: 0 | H6: 0 | I6: 0 | J6: 0 | K6: 0 | L6: 0 | M6: 0 | U6: 1 | V6: 0 | W6: 0 | X6: 0 | Y6: 0 | Z6: 0.0 % | AA6: 0 | AG6: 0-2 VM
B7: 1990 | C7: 8. | D7: KaMa 2 | F7: maakuntasarja | AA7: 0
B8: 1991 | C8: 10. | D8: KaMa | E8: 1 | F8: 0 | G8: 0 | H8: 1 | I8: 0 | J8: 0 | K8: 0 | L8: 0 | M8: 0 | N8: ----
B9: 1992 | C9: 4. | D9: KaMa 2 | F9: maakuntasarja | AA9: 0
B10: 1993 | C10: 9. | D10: KaMa | E10: 24 | F10: 0 | G10: 8 | H10: 12 | I10: 56 | J10: 27 | K10: 11 | L10: 10 | M10: 8 | N10: 39.2 % | AA10: 0
B11: 1994 | C11: 13. | D11: KaMa | E11: 16 | F11: 0 | G11: 2 | H11: 3 | I11: 44 | J11: 24 | K11: 11 | L11: 7 | M11: 2 | N11: 55.0 % | AA11: 66
B12: 1995 | C12: 13. | D12: KaMa | E12: 29 | F12: 1 | G12: 1 | H12: 20 | I12: 95 | J12: 54 | K12: 30 | L12: 9 | M12: 2 | N12: 48.0 %
B13: 1996 | C13: 2. | D13: KaMa | F13: ykköspesis
B14: 1997 | C14: 1. | D14: KaMa | F14: ykköspesis | AA14: 0
B15: 1998 | C15: 8. | D15: KaMa | E15: 27 | F15: 0 | G15: 1 | H15: 22 | I15: 107 | J15: 56 | K15: 37 | L15: 13 | M15: 1 | N15: 58.8 % | U15: 4 | V15: 0 | W15: 0 | X15: 1 | Y15: 7 | Z15: 53.8 % | AA15: 0 | AG15: 1-3 Lippo
B16: 1999 | C16: 10. | D16: KaMa 2 | F16: suomensarja | AA16: 0
B17: 2000 | C17: 10. | D17: KaMa 2 | F17: suomensarja
B18: 2001 | C18: 10. | D18: KaMa | E18: 27 | F18: 0 | G18: 2 | H18: 3 | I18: 50 | J18: 29 | K18: 14 | L18: 5 | M18: 2 | N18: 39.4 %
B19: 2002 | C19: 9. | D19: KaMa 2 | F19: suomensarja
B20: 2003 | AA20: 40
B21: 2004 | AA21: 74
B22: 2005 | C22: 6. | D22: KaMa 2 | F22: suomensarja | AA22: 85
B23: Yhteensä | E23: 124 | F23: 1 | G23: 14 | H23: 61 | I23: 352 | J23: 190 | K23: 103 | L23: 44 | M23: 15 | N23: 48.2 % | P23: 0-0-0 | Q23: 0-0-0 | R23: 0-0-0 | S23: 0-0-0 | U23: 5 | V23: 0 | W23: 0 | X23: 1 | Y23: 7 | Z23: 50.0 % | AA23: 265 | AB23: 0-0-0 | AC23: 0-0-0 | AD23: 0-0-0 | AE23: 0-0-0 | AG23: 0/2 | AH23: 0/0 | AI23: 0/0 | AJ23: 0/0 | AL23: 0 | AM23: 0 | AN23: 0 | AO23: 0 | AP23: 0 | AQ23: 0
AG24: 0.0 % | AH24: 0.0 % | AI24: 0.0 % | AJ24: 0.0 %
B25: Pesispörssi | D25: 229.7
B27: URA SUPERISSA | E27: OTT | F27: KUN | G27: LÖI | H27: TOI | I27: KL | K27: ka/L | L27: ka/T | M27: ka/KL | N27: KL-% | P27: ENSIMMÄISET RUNKOSARJASSA | AG27: ENSIMMÄISET PUDOTUSPELEISSÄ | AL27: YLEISÖ
B28: Runkosarja | E28: 124 | F28: 1 | G28: 14 | H28: 61 | I28: 352 | K28: 0.12 | L28: 0.49 | M28: 2.84 | N28: 48.2 % | P28: Ottelu | R28: 16.08. 1989 KaMa - VM 1-6 | AA28: 1. ottelu | AD28: 19 v 6 kk 9 pv | AG28: Ottelu | AH28: 1. 19.08. 1989 VM - KaMa 8-7 | AL28: 2862 | AN28: 19 v 6 kk 12 pv
B29: Ylempi loppusarja | E29: 5 | F29: 0 | G29: 0 | H29: 1 | I29: 7 | K29: 0.00 | L29: 0.20 | M29: 1.40 | N29: 50.0 % | P29: Lyöty | R29: 16.05. 1993 KaMa - KiPa 5-12 | AA29: 5. ottelu | AD29: 23 v 3 kk 9 pv | AG29: Lyöty
B30: Alempi loppusarja | E30: 23 | F30: 0 | G30: 2 | H30: 13 | I30: 59 | K30: 0.09 | L30: 0.57 | M30: 2.57 | N30: 48.7 % | P30: Tuotu | R30: 05.05. 1991 SoJy - KaMa 5-4 | AA30: 2. ottelu | AD30: 21 v 2 kk 28 pv | AG30: Tuotu | AH30: 5. 23.08. 1998 KaMa - Lippo 0-2 | AL30: 1080 | AN30: 28 v 6 kk 16 pv
B31: KAIKKI | E31: 152 | F31: 1 | G31: 16 | H31: 75 | I31: 418 | K31: 0.11 | L31: 0.49 | M31: 2.75 | N31: 48.2 % | P31: Kunnari | R31: 25.07. 1995 KaMa - LP 1-2 (3-4, 4-1, 0-2) | AA31: 66. ottelu | AD31: 25 v 5 kk 18 pv | AG31: Kunnari
B33: Seurat | D33: KaMa = Kankaanpään Maila (1958)

Sheet MYP, MSS
B1: Jussi Vesanko | E1: 7.2.1970
B2: YKKÖSPESIS | E2: Runkosarja | L2: Runkosarja TOP-10 | Q2: Jatkosarjat | X2: SUOMENSARJA | AA2: Runkosarja | AH2: Runkosarja TOP-10 | AM2: Jatkosarjat
B3: Vuosi | C3: Sija | D3: Seura | E3: OTT | F3: KUN | G3: LÖI | H3: TOI | I3: KL | J3: KL-% | L3: LÖI | M3: TOI | N3: L+T | O3: KL | Q3: OTT | R3: KUN | S3: LÖI | T3: TOI | U3: KL | V3: KL-% | X3: Vuosi | Y3: Sija | Z3: Seura | AA3: OTT | AB3: KUN | AC3: LÖI | AD3: TOI | AE3: KL | AF3: KL-% | AH3: LÖI | AI3: TOI | AJ3: L+T | AK3: KL | AM3: OTT | AN3: KUN | AO3: LÖI | AP3: TOI | AQ3: KL | AR3: KL-%
X4: 1988 | Y4: 12. | Z4: KaMa 2 | AA4: 20 | AB4: 0 | AC4: 6 | AD4: 12
B6: 1996 | C6: 2. | D6: KaMa | E6: 26 | F6: 1 | G6: 7 | H6: 26 | I6: 106
B7: 1997 | C7: 1. | D7: KaMa | E7: 26 | F7: 0 | G7: 3 | H7: 31 | I7: 107
X9: 2002 | Y9: 9. | Z9: KaMa 2 | AA9: 7 | AB9: 0 | AC9: 1 | AD9: 3 | AE9: 26 | AF9: 63.4 % | AG9: 41
X11: 2005 | Y11: 6. | Z11: KaMa 2 | AA11: 13 | AB11: 3 | AC11: 7 | AD11: 14 | AE11: 61 | AF11: 56.5 % | AG11: 108
B12: YHTEENSÄ | E12: =SUM(E4:E11) -> 52 | F12: =SUM(F4:F11) -> 1 | G12: =SUM(G4:G11) -> 10 | H12: =SUM(H4:H11) -> 57 | I12: =SUM(I4:I11) -> 213 | J12: 0.0 % | K12: =SUM(K4:K11) -> 0 | Q12: =SUM(Q4:Q11) -> 0 | R12: =SUM(R4:R11) -> 0 | S12: =SUM(S4:S11) -> 0 | T12: =SUM(T4:T11) -> 0 | U12: =SUM(U4:U11) -> 0 | V12: 0.0 % | W12: =SUM(W4:W11) -> 0 | X12: YHTEENSÄ | AA12: =SUM(AA4:AA11) -> 40 | AB12: =SUM(AB4:AB11) -> 3 | AC12: =SUM(AC4:AC11) -> 14 | AD12: =SUM(AD4:AD11) -> 29 | AE12: =SUM(AE4:AE11) -> 87 | AF12: =PRODUCT(AE12/AG12) -> 58.4 % | AG12: =SUM(AG4:AG11) -> 149 | AM12: =SUM(AM4:AM11) -> 0 | AN12: =SUM(AN4:AN11) -> 0 | AO12: =SUM(AO4:AO11) -> 0 | AP12: =SUM(AP4:AP11) -> 0 | AQ12: =SUM(AQ4:AQ11) -> 0 | AR12: 0.0 % | AS12: =SUM(AS4:AS11) -> 0
B14: KAIKKI OTTELUT | E14: OTT | F14: KUN | G14: LÖI | H14: TOI | I14: KL | J14: KL-% | L14: ka/L | M14: ka/T | N14: ka/l+t | O14: ka/kl | R14: Seurat | T14: KaMa = Kankaanpään Maila (1958)
B15: SUPERPESIS | E15: 152 | F15: 1 | G15: 16 | H15: 75 | I15: 418 | J15: 48.2 % | K15: =PRODUCT(I15/J15) -> 867.219917 | L15: =PRODUCT((F15+G15)/E15) -> 0.11 | M15: =PRODUCT(H15/E15) -> 0.49 | N15: =PRODUCT((F15+G15+H15)/E15) -> 0.61 | O15: 2.75
B16: YKKÖSPESIS | E16: =PRODUCT(E12+Q12) -> 52 | F16: =PRODUCT(F12+R12) -> 1 | G16: =PRODUCT(G12+S12) -> 10 | H16: =PRODUCT(H12+T12) -> 57 | I16: =PRODUCT(I12+U12) -> 213 | K16: =PRODUCT(K12+W12) -> 0 | L16: =PRODUCT((F16+G16)/E16) -> 0.21 | M16: =PRODUCT(H16/E16) -> 1.10 | N16: =PRODUCT((F16+G16+H16)/E16) -> 1.31 | O16: 4.10
B17: SUOMENSARJA | E17: =PRODUCT(AA12+AM12) -> 40 | F17: =PRODUCT(AB12+AN12) -> 3 | G17: =PRODUCT(AC12+AO12) -> 14 | H17: =PRODUCT(AD12+AP12) -> 29 | I17: =PRODUCT(AE12+AQ12) -> 87 | J17: =PRODUCT(I17/K17) -> 58.4 % | K17: =PRODUCT(AG12+AS12) -> 149 | L17: =PRODUCT((F17+G17)/E17) -> 0.43 | M17: =PRODUCT(H17/E17) -> 0.73 | N17: =PRODUCT((F17+G17+H17)/E17) -> 1.15 | O17: 4.35
B18: YHTEENSÄ | E18: =SUM(E15:E17) -> 244 | F18: =SUM(F15:F17) -> 5 | G18: 40 | H18: 161 | I18: 718 | K18: =SUM(K15:K17) -> 1016.219917 | L18: =PRODUCT((F18+G18)/E18) -> 0.18 | M18: =PRODUCT(H18/E18) -> 0.66 | N18: =PRODUCT((F18+G18+H18)/E18) -> 0.84 | O18: 3.21

Sheet Kärkilyönnit
B1: KÄRKILYÖNNIT RUNKOSARJASSA | V1: VUOSITTAISET SIJOITUKSET TOP - 30
G2: 0 > 1 | J2: 1 > 2 | M2: 2 > 3 | P2: 3 > k | S2: Yhteensä
B3: Vuosi | C3: Sija | D3: Seura | E3: OTT | F3: KL | G3: YHT | H3: % | I3: KL | J3: YHT | K3: % | L3: KL | M3: YHT | N3: % | O3: KL | P3: YHT | Q3: % | R3: KL | S3: YHT | T3: % | V3: Vuosi | W3: Sija | X3: Seura | Y3: 0 > 1 | Z3: 1 > 2 | AA3: 2 > 3 | AB3: 3 > k | AC3: KL
B4: 1991 | C4: 10. | D4: KaMa | E4: 1 | F4: 0 | G4: 0 | H4: 0.0 % | I4: 0 | J4: 0 | K4: 0.0 % | L4: 0 | M4: 0 | N4: 0.0 % | O4: 0 | P4: 0 | Q4: 0.0 % | R4: 0 | S4: 0 | T4: 0.0 % | V4: 1991 | W4: 4. | X4: KaMa
B5: 1992 | V5: 1992
B6: 1993 | C6: 9. | D6: KaMa | E6: 24 | F6: 27 | G6: 61 | H6: =PRODUCT(F6/G6) -> 44.3 % | I6: 11 | J6: 29 | K6: =PRODUCT(I6/J6) -> 37.9 % | L6: 10 | M6: 27 | N6: =PRODUCT(L6/M6) -> 37.0 % | O6: 8 | P6: 26 | Q6: =PRODUCT(O6/P6) -> 30.8 % | R6: 56 | S6: =PRODUCT(G6+J6+M6+P6) -> 143 | T6: 39.2 % | V6: 1993 | W6: 10. | X6: KaMa
B7: 1994 | C7: 12. | D7: KaMa | E7: 16 | F7: 24 | G7: 45 | H7: =PRODUCT(F7/G7) -> 53.3 % | I7: 11 | J7: 17 | K7: =PRODUCT(I7/J7) -> 64.7 % | L7: 7 | M7: 12 | N7: =PRODUCT(L7/M7) -> 58.3 % | O7: 2 | P7: 7 | Q7: =PRODUCT(O7/P7) -> 28.6 % | R7: 44 | S7: =PRODUCT(G7+J7+M7+P7) -> 81 | T7: 55.0 % | V7: 1994 | W7: 5. | X7: KaMa
B8: 1995 | C8: 13. | D8: KaMa | E8: 29 | F8: 54 | G8: 110 | H8: =PRODUCT(F8/G8) -> 49.1 % | I8: 30 | J8: 56 | K8: =PRODUCT(I8/J8) -> 53.6 % | L8: 9 | M8: 20 | N8: =PRODUCT(L8/M8) -> 45.0 % | O8: 2 | P8: 12 | Q8: =PRODUCT(O8/P8) -> 16.7 % | R8: 95 | S8: =PRODUCT(G8+J8+M8+P8) -> 198 | T8: 48.0 % | V8: 1995 | W8: 9. | X8: KaMa | Y8: 20.
B9: **** | V9: ****
B10: 1998 | C10: 8. | D10: KaMa | E10: 27 | F10: 56 | G10: 93 | H10: =PRODUCT(F10/G10) -> 60.2 % | I10: 37 | J10: 60 | K10: =PRODUCT(I10/J10) -> 61.7 % | L10: 13 | M10: 19 | N10: =PRODUCT(L10/M10) -> 68.4 % | O10: 1 | P10: 10 | Q10: =PRODUCT(O10/P10) -> 10.0 % | R10: 107 | S10: =PRODUCT(G10+J10+M10+P10) -> 182 | T10: 58.8 % | V10: 1998 | W10: 8. | X10: KaMa | Y10: 21.
B11: **** | V11: ****
B12: 2001 | C12: 10. | D12: KaMa | E12: 27 | F12: 29 | G12: 59 | H12: 49.2 % | I12: 14 | J12: 34 | K12: 41.2 % | L12: 5 | M12: 11 | N12: 45.5 % | O12: 2 | P12: 23 | Q12: 8.7 % | R12: 50 | S12: 127 | T12: 39.4 % | V12: 2001 | W12: 10. | X12: KaMa
B13: Yhteensä | E13: =SUM(E4:E12) -> 124 | F13: =SUM(F4:F12) -> 190 | G13: =SUM(G4:G12) -> 368 | H13: =PRODUCT(F13/G13) -> 51.6 % | I13: =SUM(I4:I12) -> 103 | J13: =SUM(J4:J12) -> 196 | K13: =PRODUCT(I13/J13) -> 52.6 % | L13: =SUM(L4:L12) -> 44 | M13: =SUM(M4:M12) -> 89 | N13: =PRODUCT(L13/M13) -> 49.4 % | O13: =SUM(O4:O12) -> 15 | P13: =SUM(P4:P12) -> 78 | Q13: =PRODUCT(O13/P13) -> 19.2 % | R13: =SUM(R4:R12) -> 352 | S13: =SUM(S4:S12) -> 731 | T13: =PRODUCT(R13/S13) -> 48.2 %
B15: KÄRKILYÖNNIT YLEMMISSÄ PUDOTUSPELEISSÄ | V15: VUOSITTAISET SIJOITUKSET TOP - 30
G16: 0 > 1 | J16: 1 > 2 | M16: 2 > 3 | P16: 3 > k | S16: Yhteensä
B17: Vuosi | C17: Sija | D17: Seura | E17: OTT | F17: KL | G17: YHT | H17: % | I17: KL | J17: YHT | K17: % | L17: KL | M17: YHT | N17: % | O17: KL | P17: YHT | Q17: % | R17: KL | S17: YHT | T17: % | V17: Vuosi | W17: Sija | X17: Seura | Y17: 0 > 1 | Z17: 1 > 2 | AA17: 2 > 3 | AB17: 3 > k | AC17: KL
B18: 1989 | C18: 5. | D18: KaMa | E18: 1 | F18: 0 | G18: 1 | H18: 0.0 % | I18: 0 | J18: 0 | K18: 0.0 % | L18: 0 | M18: 0 | N18: 0.0 % | O18: 0 | P18: 0 | Q18: 0.0 % | R18: 0 | S18: 1 | T18: 0.0 % | V18: 1989 | W18: 5. | X18: KaMa
B19: **** | V19: ****
B20: 1998 | C20: 8. | D20: KaMa | E20: 4 | F20: 3 | G20: 5 | H20: 60.0 % | I20: 2 | J20: 5 | K20: 40.0 % | L20: 2 | M20: 2 | N20: 100.0 % | O20: 0 | P20: 1 | Q20: 0.0 % | R20: 7 | S20: 13 | T20: 53.8 % | V20: 1998 | W20: 8. | X20: KaMa
B21: Yhteensä | E21: =SUM(E16:E20) -> 5 | F21: =SUM(F18:F20) -> 3 | G21: =SUM(G18:G20) -> 6 | H21: =PRODUCT(F21/G21) -> 50.0 % | I21: =SUM(I18:I20) -> 2 | J21: =SUM(J18:J20) -> 5 | K21: =PRODUCT(I21/J21) -> 40.0 % | L21: =SUM(L18:L20) -> 2 | M21: =SUM(M18:M20) -> 2 | N21: =PRODUCT(L21/M21) -> 100.0 % | O21: =SUM(O18:O20) -> 0 | P21: =SUM(P18:P20) -> 1 | Q21: =PRODUCT(O21/P21) -> 0.0 % | R21: =SUM(R18:R20) -> 7 | S21: =SUM(S18:S20) -> 14 | T21: =PRODUCT(R21/S21) -> 50.0 %
B23: KÄRKILYÖNNIT
G24: 0 > 1 | J24: 1 > 2 | M24: 2 > 3 | P24: 3 > k | S24: Yhteensä
E25: OTT | F25: KL | G25: YHT | H25: % | I25: KL | J25: YHT | K25: % | L25: KL | M25: YHT | N25: % | O25: KL | P25: YHT | Q25: % | R25: KL | S25: YHT | T25: %
B26: RUNKOSARJA | E26: =PRODUCT(E13) -> 124 | F26: =PRODUCT(F13) -> 190 | G26: =PRODUCT(G13) -> 368 | H26: =PRODUCT(H13) -> 51.6 % | I26: =PRODUCT(I13) -> 103 | J26: =PRODUCT(J13) -> 196 | K26: =PRODUCT(K13) -> 52.6 % | L26: =PRODUCT(L13) -> 44 | M26: =PRODUCT(M13) -> 89 | N26: =PRODUCT(N13) -> 49.4 % | O26: =PRODUCT(O13) -> 15 | P26: =PRODUCT(P13) -> 78 | Q26: =PRODUCT(Q13) -> 19.2 % | R26: =PRODUCT(R13) -> 352 | S26: =PRODUCT(S13) -> 731 | T26: =PRODUCT(T13) -> 48.2 %
B27: PLAY OFF | E27: =PRODUCT(E21) -> 5 | F27: =PRODUCT(F21) -> 3 | G27: 6 | H27: 50.0 % | I27: 2 | J27: 5 | K27: 40.0 % | L27: 2 | M27: 2 | N27: 100.0 % | O27: 0 | P27: 1 | Q27: 0.0 % | R27: 7 | S27: 14 | T27: 50.0 %
